bitfinex-derivatives/quotes_ETHF0:USTF0_20250125
["timestamp","ask_amount","ask_price","bid_price","bid_amount"]
[1737794744543,0.509,3293.1,3292.9,2.82523463]
[1737794744839,0.48589,3293.4,3293.1,0.48593]
[1737794745043,0.48589,3293.4,3292.8,1.5331]
[1737794745044,1.51188,3293.5,3293.3,2.33927463]
[1737794745438,1.51188,3293.5,3293.4,0.5233]
[1737794746841,0.48589,3293.4,3293.3,2.33927463]
[1737794747941,1.026,3293.5,3293.3,2.33927463]
[1737794748144,0.5205,3293.5,3293.3,2.82517463]
[1737794748340,0.48585,3293.7,3293.4,1.46909]
[1737794748541,2.43551,3294.0,3293.6,2.82512463]
[1737794748947,1.4785,3294.0,3293.9,2.33927463]
[1737794749435,1.9931,3294.0,3293.9,2.33927463]
[1737794751940,1.5073,3294.0,3293.9,2.33927463]
[1737794752146,1.0214,3294.0,3293.9,2.33927463]
[1737794752445,0.5003,3294.3,3293.9,5.54707463]
[1737794752647,0.98606,3294.3,3294.0,0.4963]
[1737794752846,0.98606,3294.3,3294.0,0.9951]
[1737794753842,0.48577,3294.2,3294.0,0.9951]
[1737794754149,0.5003,3294.3,3294.0,0.9951]
[1737794754150,0.48578,3294.1,3294.0,0.4988]
[1737794756351,0.4858,3294.0,3293.9,5.54707463]
[1737794756553,0.9627,3294.0,3293.9,5.54707463]
[1737794756946,0.9627,3294.0,3293.9,3.2078]
[1737794757743,1.3247729,3294.0,3293.9,3.2078]
[1737794758147,5.34063662,3294.0,3293.9,3.2078]
[1737794761751,0.3620729,3294.0,3293.9,3.2078]
[1737794761953,0.3620729,3294.0,3293.9,5.54707463]
[1737794762157,0.4858,3294.1,3293.9,5.54707463]
[1737794762460,0.4858,3294.1,3294.0,0.5188]
[1737794763260,0.48578,3294.1,3294.0,0.5188]
[1737794763650,0.48577,3294.2,3294.0,0.5188]
[1737794764757,1.50296,3294.3,3294.0,0.5188]
[1737794765358,1.0172,3294.3,3294.0,0.5188]
[1737794765560,0.48578,3294.1,3294.0,0.5188]
[1737794766157,0.4858,3294.0,3293.9,6.05727463]
[1737794767250,1.0172,3294.3,3293.9,6.05727463]
[1737794767555,0.4858,3294.1,3293.9,6.05727463]
[1737794767761,0.4858,3294.0,3293.9,6.05727463]
[1737794768765,0.48578,3294.1,3293.9,6.05727463]
[1737794769464,1.0172,3294.3,3293.9,6.05727463]
[1737794769666,0.48579,3294.1,3293.9,6.05727463]
[1737794769972,1.0172,3294.3,3293.9,6.05727463]
[1737794770168,1.0172,3294.3,3294.2,2.33927463]
[1737794770169,1.50296,3294.3,3294.2,2.33927463]
[1737794771369,0.4858,3294.0,3293.9,6.05727463]
[1737794773982,1.0172,3294.3,3293.9,6.05727463]
[1737794774470,0.48579,3294.1,3293.9,6.05727463]
[1737794774682,0.4858,3294.0,3293.9,6.05727463]
[1737794775273,0.4858,3294.0,3293.9,6.42262652]
[1737794775471,0.4858,3294.0,3293.9,6.42265015]
[1737794775869,0.4858,3294.0,3293.9,6.42263288]
[1737794776274,0.4858,3294.0,3293.9,6.42274104]
[1737794776581,0.4858,3294.0,3293.9,6.05727463]
[1737794778177,0.4858,3294.0,3293.9,6.42307556]
[1737794779378,0.4858,3294.0,3293.9,6.05727463]
[1737794780173,0.48579,3294.1,3293.9,6.05727463]
[1737794780374,0.48579,3294.1,3293.9,6.57857463]
[1737794780577,0.36299712,3294.2,3293.9,6.57857463]
[1737794780776,0.84876712,3294.2,3293.9,7.06437463]
[1737794780978,0.84876712,3294.2,3294.0,0.4858]
[1737794781477,0.84876712,3294.2,3293.9,7.06437463]
[1737794782176,0.36299712,3294.2,3293.9,6.57857463]
[1737794782374,0.36299712,3294.2,3294.0,0.48579]
[1737794782570,0.84876712,3294.2,3294.0,0.48579]
[1737794782878,0.48577,3294.2,3294.0,0.48579]
[1737794783375,0.84876712,3294.2,3294.0,0.48579]
[1737794783676,0.36299712,3294.2,3294.0,0.48579]
[1737794783875,0.84876712,3294.2,3294.0,0.48579]
[1737794784073,0.36299712,3294.2,3294.0,0.48579]
[1737794784480,0.36299712,3294.2,3294.0,1.78357148]
[1737794784678,0.36299712,3294.2,3294.1,0.48578]
[1737794787272,0.36299712,3294.2,3294.1,1.30899179]
[1737794787976,0.36299712,3294.2,3294.1,0.85158372]
[1737794788175,0.36299712,3294.2,3294.1,0.48578]
[1737794788581,0.36299712,3294.2,3294.1,1.30918205]
[1737794788773,0.48575,3294.4,3294.1,0.8233091]
[1737794788970,0.48575,3294.4,3294.3,2.33927463]
[1737794789168,0.48575,3294.4,3294.3,0.3658881]
[1737794789375,0.48578,3294.1,3294.0,2.33927463]
[1737794789574,0.48578,3294.1,3294.0,2.70524435]
[1737794790484,0.48578,3294.1,3294.0,2.70526059]
[1737794791179,0.48578,3294.1,3294.0,0.36598596]
[1737794791676,0.4858,3294.0,3293.9,3.2078]
[1737794791876,0.4858,3294.0,3293.9,3.57385591]
[1737794793073,0.4858,3294.0,3293.9,0.36605591]
[1737794794983,0.4858,3294.0,3293.9,0.36592572]
[1737794795479,0.48582,3293.9,3293.7,2.33927463]
[1737794795684,1.00982,3293.9,3293.7,2.33927463]
[1737794796578,0.524,3293.9,3293.7,2.33927463]
[1737794796773,0.524,3293.9,3293.6,0.5101]
[1737794796979,0.48587,3293.5,3293.4,5.54707463]
[1737794801386,0.48587,3293.5,3293.0,1.78357148]
[1737794801588,0.48593,3293.1,3293.0,1.78357148]
[1737794803791,4.49699819,3293.1,3293.0,1.78357148]
[1737794805394,4.49699819,3293.1,3292.8,5.54707463]
[1737794805395,0.48596,3292.9,3292.8,5.54707463]
[1737794806691,0.48596,3292.9,3292.8,6.02277463]
[1737794806992,4.01106819,3293.1,3292.8,6.02277463]
[1737794807186,1.0089,3293.2,3292.8,6.02277463]
[1737794807187,0.4999,3293.2,3292.8,6.02277463]
[1737794807494,0.48591,3293.3,3293.1,2.33927463]
[1737794807695,0.495,3293.4,3293.1,2.33927463]
[1737794807899,0.48592,3293.2,3293.1,2.33927463]
[1737794808201,0.48596,3292.9,3292.8,6.02277463]
[1737794808498,0.48596,3292.9,3292.8,5.54707463]
[1737794809398,0.98526,3292.9,3292.8,5.54707463]
[1737794809997,0.98526,3292.9,3292.8,2.33927463]
[1737794815994,0.98526,3292.9,3292.8,2.86167463]
[1737794822195,0.98526,3292.9,3292.8,3.36887463]
[1737794825602,0.98526,3292.9,3292.8,3.73457444]
[1737794826404,0.48596,3292.9,3292.8,3.73457444]
[1737794826703,0.48596,3292.9,3292.8,4.24587444]
[1737794827501,3.2078,3293.1,3293.0,0.48595]
[1737794827707,3.2078,3293.1,3293.0,0.8519435]
[1737794829204,3.2078,3293.5,3293.0,0.3659935]
[1737794829511,1.93385,3293.7,3293.4,0.48588]
[1737794829713,1.93385,3293.7,3293.5,1.37424262]
[1737794829901,4.2263,3294.0,3293.6,0.36611055]
[1737794830209,0.48583,3293.8,3293.5,1.49396]
[1737794830502,0.48583,3293.8,3293.6,0.36607278]
[1737794830706,0.957,3293.9,3293.5,1.0081]
[1737794830907,1.44282,3293.9,3293.6,0.85193172]
[1737794831210,1.44282,3293.9,3293.6,0.48586]
[1737794831606,0.48583,3293.8,3293.5,1.49396]
[1737794831907,0.48583,3293.8,3293.6,0.36599409]
[1737794832212,0.48583,3293.8,3293.5,1.49396]
[1737794832409,0.48583,3293.8,3293.6,0.36589249]
[1737794832703,0.957,3293.9,3293.2,2.33927463]
[1737794832704,0.4859,3293.3,3293.2,2.33927463]
[1737794833110,1.4885,3293.5,3293.2,2.33927463]
[1737794833405,1.97439,3293.5,3293.2,2.33927463]
[1737794833806,0.48589,3293.4,3293.2,2.33927463]
[1737794834403,1.4885,3293.5,3293.2,2.33927463]
[1737794834802,0.4859,3293.3,3293.2,2.33927463]
[1737794835604,0.48589,3293.4,3293.2,2.33927463]
[1737794836410,0.4859,3293.3,3293.2,2.33927463]
[1737794839304,0.957,3293.6,3293.2,2.33927463]
[1737794839506,3.2078,3294.0,3293.5,2.33927463]
[1737794839710,0.48582,3293.9,3293.6,1.98994]
[1737794839911,0.48583,3293.8,3293.6,1.98994]
[1737794840412,0.48582,3293.9,3293.6,1.98994]
[1737794840914,3.69361,3294.0,3293.7,0.48584]
[1737794841111,3.69361,3294.0,3293.6,1.5041]
[1737794841112,0.48581,3293.9,3293.8,2.33927463]
[1737794841716,0.4858,3294.0,3293.8,2.33927463]
[1737794843810,1.4718,3294.1,3293.8,2.33927463]
[1737794844007,0.4974,3294.1,3293.9,0.48581]
[1737794844206,0.4974,3294.1,3293.8,2.33927463]
[1737794844407,0.48576,3294.3,3294.0,0.4858]
[1737794844614,0.48576,3294.3,3294.1,2.84567463]
[1737794845419,1.9422,3294.4,3294.1,2.84567463]
[1737794845719,1.9422,3294.4,3294.2,0.48576]
[1737794846019,2.42794,3294.4,3294.2,0.5109]
[1737794848707,0.9852,3294.4,3294.2,0.5109]
[1737794849213,0.48575,3294.3,3294.1,2.84567463]
[1737794849407,1.00055,3294.3,3294.1,2.84567463]
[1737794851217,1.47094,3294.4,3294.1,3.33144463]
[1737794851416,3.2078,3294.5,3294.2,0.503]
[1737794851715,3.2078,3294.5,3294.4,2.82501463]
[1737794853013,3.2078,3294.5,3294.4,2.33927463]
[1737794853215,3.2078,3294.5,3294.4,2.82501463]
[1737794853411,0.48572,3294.6,3294.4,2.33927463]
[1737794854114,0.4857,3294.7,3294.4,2.82501463]
[1737794854415,0.957,3294.8,3294.4,2.33927463]
[1737794854620,0.48572,3294.6,3294.4,2.33927463]
[1737794855412,0.4857,3294.7,3294.4,2.82501463]
[1737794856014,0.48572,3294.6,3294.4,2.33927463]
[1737794856411,0.957,3294.8,3294.4,2.33927463]
[1737794856717,0.957,3294.8,3294.2,0.50755781]
[1737794856718,0.48575,3294.3,3294.2,0.00455781]
[1737794857425,4.3980446,3294.3,3294.2,0.00455781]
[1737794857923,4.44651279,3294.3,3294.2,0.00455781]
[1737794858224,0.48581,3293.9,3293.8,3.2078]
[1737794858519,1.44281,3293.9,3293.8,3.2078]
[1737794858719,5.45468034,3293.9,3293.8,3.2078]
[1737794861025,1.44281,3293.9,3293.8,3.2078]
[1737794862721,0.957,3293.9,3293.5,2.34383244]
[1737794863024,0.48586,3293.6,3293.5,2.34383244]
[1737794863218,0.48586,3293.6,3293.5,0.00455781]
[1737794863622,0.48586,3293.6,3293.5,2.34383244]
[1737794863827,0.48585,3293.7,3293.5,2.34383244]
[1737794864829,0.48582,3293.9,3293.5,2.82969244]
[1737794865029,0.48582,3293.9,3293.8,2.33927463]
[1737794865327,0.48582,3293.9,3293.8,43.13927463]
[1737794866120,0.48582,3293.9,3293.8,2.33927463]
[1737794867621,0.957,3294.0,3293.5,2.34383244]
[1737794867826,0.48586,3293.6,3293.5,2.34383244]
[1737794869230,1.48056,3293.6,3293.5,2.34383244]
[1737794871133,0.48586,3293.6,3293.5,2.34383244]
[1737794875332,0.48586,3293.6,3293.5,2.86123244]
[1737794876036,0.48585,3293.7,3293.5,2.86123244]
[1737794876626,0.48583,3293.8,3293.5,2.86123244]
[1737794876832,1.5023,3294.0,3293.7,0.48584]
[1737794877132,1.44279,3294.1,3293.8,2.82509463]
[1737794877336,1.44279,3294.1,3293.9,0.4793]
[1737794877528,1.44279,3294.1,3293.9,0.9883]
[1737794877727,0.49033781,3294.2,3293.9,1.47411]
[1737794877929,0.48579,3294.1,3293.9,0.9883]
[1737794878133,0.00455781,3294.2,3293.9,0.9883]
[1737794878435,0.49032781,3294.2,3294.1,2.33927463]
[1737794879428,0.00455781,3294.2,3294.1,2.33927463]
[1737794880735,0.49032781,3294.2,3294.1,2.33927463]
[1737794881338,0.4858,3294.0,3293.9,0.9883]
[1737794884431,1.0205,3294.1,3293.6,1.78357148]
[1737794884635,0.48584,3293.7,3293.6,1.78357148]
[1737794885739,0.48586,3293.6,3293.5,0.00455781]
[1737794885934,0.99196,3293.6,3293.5,0.00455781]
[1737794886137,1.94896,3293.6,3293.5,0.00455781]
[1737794886737,1.80538314,3293.6,3293.5,0.00455781]
[1737794891447,2.1786176,3293.6,3293.5,0.00455781]
[1737794891839,6.2087611,3293.6,3293.5,0.00455781]
[1737794892247,5.83553514,3293.6,3293.5,0.00455781]
[1737794892745,5.83553514,3293.6,3293.5,2.34383244]
[1737794892948,5.83553514,3293.6,3293.5,2.70972335]
[1737794892949,5.473012,3293.6,3293.5,2.70972335]
[1737794893147,0.957,3293.6,3293.5,2.70972335]
[1737794893339,0.957,3293.6,3293.5,3.19559335]
[1737794893538,0.957,3293.6,3293.5,2.70972335]
[1737794893940,0.957,3293.6,3293.5,3.23682335]
[1737794894346,0.957,3293.6,3293.5,2.87093244]
[1737794894547,0.957,3293.6,3293.5,3.22985242]
[1737794895054,0.957,3293.6,3293.5,3.22985351]
[1737794896457,0.957,3293.6,3293.5,3.22987795]
[1737794896651,1.44286,3293.6,3293.5,0.53165781]
[1737794902452,1.44286,3293.6,3293.5,0.00455781]
[1737794908154,1.80567894,3293.6,3293.5,0.00455781]
[1737794910761,0.36281894,3293.6,3293.5,2.34383244]
[1737794910966,0.48581,3294.0,3293.7,0.48584]
[1737794911259,0.48581,3294.0,3293.9,2.33927463]
[1737794911959,0.48581,3293.9,3293.8,0.4761]
[1737794912264,0.48584,3293.7,3293.6,2.83577463]
[1737794920561,0.9764,3294.0,3293.5,0.00455781]
[1737794920562,0.48586,3293.6,3293.5,0.00455781]
[1737794924960,4.35326124,3293.6,3293.5,0.00455781]
[1737794925362,4.71637705,3293.6,3293.5,0.00455781]
[1737794930872,4.35326124,3293.6,3293.5,0.00455781]
[1737794938480,4.71603536,3293.6,3293.5,0.00455781]
[1737794939479,5.23743536,3293.6,3293.5,0.00455781]
[1737794945587,4.87466124,3293.6,3293.5,0.00455781]
[1737794946186,5.83066124,3293.6,3293.5,0.00455781]
[1737794946574,5.30926124,3293.6,3293.5,0.00455781]
[1737794946889,4.82340124,3293.6,3293.5,0.00455781]
[1737794948685,5.30926124,3293.6,3293.5,0.00455781]
[1737794953679,6.69607926,3293.6,3293.5,0.00455781]
[1737794954583,6.56975787,3293.6,3293.3,0.4848]
[1737794954785,0.48589,3293.4,3293.3,0.4848]
[1737794955384,0.84900802,3293.4,3293.3,0.4848]
[1737794955588,4.78337538,3293.4,3293.3,0.4848]
[1737794955791,0.48592,3293.2,3293.1,0.4953]
[1737794956684,0.48593,3293.1,3293.0,0.00455781]
[1737794956881,1.36124802,3293.1,3293.0,0.00455781]
[1737794957090,5.33944067,3293.1,3293.0,0.00455781]
[1737794957790,5.29095548,3293.1,3293.0,0.00455781]
[1737794958584,5.33944108,3293.1,3293.0,0.00455781]
[1737794959887,5.33944031,3293.1,3293.0,0.00455781]
[1737794960787,4.97632219,3293.1,3293.0,0.00455781]
[1737794963488,4.97630632,3293.1,3293.0,0.00455781]
[1737794963889,5.37163746,3293.1,3293.0,0.00455781]
[1737794966995,4.41563746,3293.1,3293.0,0.00455781]
[1737794967298,1.44193,3293.1,3293.0,0.00455781]
[1737794973292,0.48593,3293.1,3293.0,0.00455781]
[1737794977693,0.48593,3293.1,3293.0,1.11185704]
[1737794977895,4.64972,3293.2,3293.0,2.21915627]
[1737794978098,4.64972,3293.2,3293.1,1.0382]
[1737794978099,4.1638,3293.2,3293.1,1.0382]
[1737794978293,3.69372,3293.2,3293.1,1.0382]
[1737794981903,0.48592,3293.2,3293.1,1.0382]
[1737794986408,0.5264,3293.3,3293.1,1.0382]
[1737794986409,0.48591,3293.3,3293.1,1.0382]
[1737794986604,0.956,3293.4,3293.2,1.10729923]
[1737794986805,0.956,3293.4,3293.2,1.61429923]
[1737794987007,0.956,3293.7,3293.2,1.61429923]
[1737794987201,1.44184,3293.7,3293.6,1.10729923]
[1737794987612,5.39653167,3293.7,3293.6,1.10729923]
[1737794987810,6.0179909,3293.7,3293.2,1.61429923]
[1737794988112,0.4859,3293.3,3293.2,1.61429923]
[1737794989906,3.694,3293.8,3293.2,1.61429923]
[1737794990212,0.4859,3293.3,3293.2,0.507]
[1737794991212,0.48588,3293.5,3293.2,1.61429923]
[1737794991411,0.48587,3293.5,3293.4,1.10729923]
[1737795001017,4.67787168,3293.7,3293.2,2.89087071]
[1737795001317,1.10729923,3293.3,3293.0,0.00455781]
[1737795001618,1.59322923,3293.1,3293.0,0.00455781]
[1737795001819,2.00106194,3293.1,3293.0,0.00455781]
[1737795002319,2.00448543,3293.1,3293.0,0.00455781]
[1737795002707,5.86858394,3293.1,3293.0,0.00455781]
[1737795003520,4.76128471,3293.1,3293.0,0.00455781]
[1737795003711,4.71280096,3293.1,3293.0,0.00455781]
[1737795004111,4.76128442,3293.1,3293.0,0.00455781]
[1737795004515,5.86858365,3293.1,3293.0,0.00455781]
[1737795005523,5.5058112,3293.1,3293.0,0.00455781]
[1737795005722,4.39851197,3293.1,3293.0,0.00455781]
[1737795007118,4.76102372,3293.1,3293.0,0.00455781]
[1737795008626,4.39851197,3293.1,3293.0,0.00455781]
[1737795009422,3.91258197,3293.1,3292.2,2.81522453]
[1737795009723,4.42272,3292.9,3292.0,3.2078]
[1737795010025,0.48608,3292.1,3292.0,3.2078]
[1737795014332,0.48609,3292.0,3291.9,3.31982453]
[1737795018728,0.48608,3292.1,3291.9,4.30493453]
[1737795018926,0.48608,3292.1,3292.0,2.34022453]
[1737795019127,0.00455781,3292.4,3292.0,2.34022453]
[1737795019323,0.00455781,3292.4,3292.3,2.82627453]
[1737795021835,1.44193,3293.2,3292.8,0.48596]
[1737795022139,0.956,3293.2,3293.1,2.34022453]
[1737795022545,1.44192,3293.2,3293.1,2.34022453]
[1737795022832,0.956,3293.2,3293.1,2.34022453]
[1737795023038,1.44192,3293.2,3293.1,2.34022453]
[1737795023724,0.956,3293.2,3293.1,2.34022453]
[1737795024124,0.956,3293.2,3292.9,0.5201]
[1737795024331,0.48593,3293.1,3292.9,0.5201]
[1737795024639,0.956,3293.2,3292.5,2.85322453]
[1737795024830,1.01,3293.0,3292.5,2.86032453]
[1737795025030,0.486,3292.6,3292.5,1.0088]
[1737795025450,0.48606,3292.3,3291.9,2.82633453]
[1737795025638,0.48607,3292.2,3291.9,2.84202453]
[1737795026034,0.48609,3292.1,3291.9,2.84202453]
[1737795026228,0.5022,3292.5,3291.9,2.84202453]
[1737795026229,0.48609,3292.0,3291.9,2.84202453]
[1737795027429,0.48609,3292.0,3291.9,2.34022453]
[1737795033048,0.48609,3292.0,3291.9,2.85322453]
[1737795035433,0.48609,3292.1,3291.9,2.85322453]
[1737795036039,0.48609,3292.0,3291.9,2.85322453]
[1737795040463,0.48609,3292.0,3291.9,2.34022453]
[1737795041066,0.956,3292.3,3291.8,3.6965]
[1737795041366,0.48611,3291.9,3291.8,3.6965]
[1737795055570,0.48611,3291.9,3291.8,0.4887]
[1737795055777,0.48611,3291.9,3291.8,3.6965]
[1737795060082,0.48611,3291.9,3291.8,4.18262]
[1737795060479,0.48611,3291.9,3291.8,3.6965]
[1737795061074,0.5023,3292.0,3291.7,0.00455781]
[1737795061269,0.48618,3291.4,3291.3,1.78357148]
[1737795061474,0.48623,3291.1,3291.0,3.7013]
[1737795062077,0.48623,3291.1,3291.0,0.4935]
[1737795062274,0.48629,3290.7,3290.6,4.76720084]
[1737795062981,6.53782453,3291.2,3290.5,7.97500084]
[1737795063184,0.4863,3290.6,3290.5,7.97500084]
[1737795063385,0.48629,3290.7,3290.5,7.97500084]
[1737795064279,0.4863,3290.6,3290.5,7.97500084]
[1737795064485,0.48629,3290.7,3290.5,7.97500084]
[1737795065783,1.0466,3290.6,3290.5,7.97500084]
[1737795066186,1.0466,3290.6,3290.5,3.2078]
[1737795066383,1.5329,3290.6,3290.5,3.2078]
[1737795071387,1.5329,3290.6,3290.3,0.00455781]
[1737795071388,0.48633,3290.4,3290.3,0.00455781]
[1737795071584,1.44233,3290.4,3290.3,0.00455781]
[1737795071988,5.31397835,3290.4,3290.3,0.00455781]
[1737795078195,5.31397835,3290.4,3290.0,3.7294]
[1737795078196,4.82764835,3290.4,3290.0,3.2078]
[1737795078395,0.48637,3290.1,3290.0,3.2078]
[1737795080693,0.48637,3290.2,3290.0,3.2078]
[1737795080895,0.48637,3290.2,3290.1,0.4802]
[1737795081793,4.39121068,3290.2,3290.1,0.4802]
[1737795081989,0.48637,3290.1,3290.0,3.2078]
[1737795082192,1.01387,3290.1,3290.0,3.2078]
[1737795082395,4.91871068,3290.1,3290.0,3.2078]
[1737795083792,4.39121068,3290.1,3290.0,3.2078]
[1737795085300,0.5214,3290.6,3290.0,3.2078]
[1737795085496,1.44233,3290.5,3290.1,0.48637]
[1737795085690,1.44233,3290.5,3290.2,0.5133]
[1737795086092,1.44233,3290.5,3290.3,0.5263]
[1737795086495,0.48633,3290.4,3290.3,0.5263]
[1737795092100,0.956,3290.5,3290.3,0.5263]
[1737795092294,0.48633,3290.4,3290.3,0.5263]
[1737795096715,3.2078,3290.7,3290.3,0.5263]
[1737795096909,3.2078,3290.7,3290.5,0.48631]
[1737795097207,3.2078,3290.7,3290.6,0.36137425]
[1737795097806,3.2078,3290.7,3290.3,1.0452]
[1737795098018,0.4802,3291.1,3290.4,41.16135074]
[1737795098309,0.48633,3290.4,3290.3,0.5263]
[1737795098510,0.48633,3290.4,3290.3,0.88769294]
[1737795098902,0.48633,3290.4,3290.3,0.5263]
[1737795102103,0.48637,3290.1,3290.0,3.2078]
[1737795102309,0.48639,3290.0,3289.9,1.78357148]
[1737795102516,0.9831,3290.0,3289.7,0.51245781]
[1737795102712,0.48642,3289.8,3289.7,0.51245781]
[1737795102914,0.48642,3289.8,3289.7,0.87394697]
[1737795103121,0.99492,3289.8,3289.7,0.00455781]
[1737795104208,1.35713633,3289.8,3289.7,0.00455781]
[1737795105114,5.29775967,3289.8,3289.7,0.00455781]
[1737795107720,4.93554334,3289.8,3289.7,0.00455781]
[1737795110416,5.33099833,3289.8,3289.7,0.00455781]
[1737795111212,4.93554334,3289.8,3289.7,0.00455781]
[1737795126336,4.98386911,3289.8,3289.7,0.00455781]
[1737795126537,4.93554334,3289.8,3289.7,0.00455781]
[1737795130734,8.14334334,3289.8,3289.7,0.00455781]
[1737795130935,8.52972389,3289.8,3289.7,0.00455781]
[1737795131130,5.32192389,3289.8,3289.7,0.00455781]
[1737795131437,8.52972389,3289.8,3289.7,0.00455781]
[1737795133136,8.02122389,3289.8,3289.7,0.00455781]
[1737795135041,7.63484334,3289.8,3289.7,0.00455781]
[1737795137141,8.59084334,3289.8,3289.7,0.00455781]
[1737795138935,7.14842334,3289.8,3289.7,0.00455781]
[1737795139244,7.14842334,3289.8,3289.7,0.36401522]
[1737795139245,2.416,3289.8,3289.7,0.36401522]
[1737795140052,2.416,3289.8,3289.7,0.36390035]
[1737795140346,2.416,3289.8,3289.7,0.00455781]
[1737795141851,2.90242,3289.8,3289.7,0.00455781]
[1737795142950,0.48642,3289.8,3289.7,0.00455781]
[1737795146245,1.10963087,3290.0,3289.7,0.00455781]
[1737795146246,0.48642,3289.9,3289.7,1.11418868]
[1737795146443,0.48642,3289.9,3289.8,0.4763]
[1737795147748,0.48639,3290.0,3289.8,0.4763]
[1737795148754,0.956,3290.2,3289.9,1.10963087]
[1737795148950,3.99059367,3290.1,3290.0,0.5177]
[1737795149260,0.48634,3290.4,3290.0,1.00409]
[1737795149447,5.02271316,3290.6,3290.2,1.10963087]
[1737795149645,0.48632,3290.5,3290.3,0.4941]
[1737795150055,1.10963087,3290.6,3290.3,0.4941]
[1737795150250,2.55193087,3290.6,3290.3,0.4941]
[1737795150446,2.06563087,3290.6,3290.3,0.4941]
[1737795150658,0.48631,3290.5,3290.3,0.4941]
[1737795152354,2.06563087,3290.6,3290.3,0.4941]
[1737795152552,0.956,3290.6,3290.3,0.98044]
[1737795152853,0.97169,3290.7,3290.4,1.10963087]
[1737795152854,0.4863,3290.7,3290.4,1.10963087]
[1737795153258,1.10963087,3290.6,3290.1,3.2078]
[1737795153452,0.48635,3290.3,3290.1,3.7004]
[1737795153758,1.59599087,3290.2,3290.1,3.2078]
[1737795154055,6.03466277,3290.2,3290.1,3.2078]
[1737795154256,5.54830277,3290.2,3289.8,1.78357148]
[1737795154453,0.4864,3289.9,3289.8,1.78357148]
[1737795154856,1.4884,3289.9,3289.8,1.78357148]
[1737795155651,0.4864,3289.9,3289.8,1.78357148]
[1737795156152,4.45059512,3289.9,3289.8,1.78357148]
[1737795157357,0.4864,3289.9,3289.8,1.78357148]
[1737795159059,0.48642,3289.8,3289.7,3.21235781]
[1737795159352,1.47432,3289.8,3289.7,3.21235781]
[1737795159950,1.99962,3289.8,3289.7,3.21235781]
[1737795161555,1.47432,3289.8,3289.7,3.21235781]
[1737795162557,0.98632,3289.8,3289.7,3.21235781]
[1737795168468,0.4999,3289.8,3289.7,3.69878781]
[1737795168670,0.4864,3290.0,3289.7,3.69878781]
[1737795168871,0.4864,3290.0,3289.7,3.21235781]
[1737795169373,0.4864,3290.0,3289.8,40.8]
[1737795169868,0.4864,3290.0,3289.7,3.69878781]
[1737795170266,1.0133,3290.1,3289.7,3.69878781]
[1737795170461,1.49968,3290.1,3289.7,44.49878781]
[1737795173880,0.99418,3290.1,3289.7,44.49878781]
[1737795174086,0.5078,3290.1,3289.7,44.01235781]
[1737795174287,0.5078,3290.1,3290.0,0.48639]
[1737795174581,0.98414,3290.4,3290.0,0.48639]
[1737795174777,1.47174,3290.4,3290.1,1.0003]
[1737795174978,1.47174,3290.4,3290.1,1.492]
[1737795175882,0.4876,3290.4,3290.2,0.48635]
[1737795176075,0.4876,3290.4,3290.1,1.97837]
[1737795178284,0.97393,3290.4,3290.1,1.492]
[1737795178883,0.48635,3290.3,3290.1,0.9742]
[1737795179783,0.48635,3290.3,3290.1,2.08345937]
[1737795180382,1.0118,3290.4,3290.1,2.08345937]
[1737795180685,0.48635,3290.3,3290.1,2.08345937]
[1737795181286,1.49813,3290.4,3290.1,2.08345937]
[1737795181688,0.48635,3290.3,3290.1,5.29125937]
[1737795182886,0.48636,3290.2,3290.1,5.29125937]
[1737795183086,0.48636,3290.3,3290.1,5.29125937]
[1737795183676,2.12105937,3290.4,3290.1,3.2078]
[1737795183881,0.48641,3289.9,3289.7,45.12161718]
[1737795184082,0.48642,3289.8,3289.7,3.21235781]
[1737795184281,0.96302,3289.8,3289.7,3.21235781]
[1737795186883,0.96302,3289.8,3289.7,4.32161718]
[1737795187695,0.4863,3290.6,3289.9,0.4864]
[1737795187888,1.5014,3290.6,3290.5,1.10925937]
[1737795188587,1.44226,3290.9,3290.5,1.10925937]
[1737795188795,0.48626,3290.9,3290.7,1.10925937]
[1737795189697,1.0157,3291.0,3290.6,0.9899]
[1737795189888,0.5199,3291.0,3290.6,0.9899]
[1737795190087,0.5199,3291.0,3290.6,0.5036]
[1737795190088,1.00615,3291.0,3290.6,0.5036]
[1737795190289,0.5199,3291.0,3290.7,40.8]
[1737795190488,0.48626,3290.9,3290.7,40.8]
[1737795192393,0.48627,3290.8,3290.7,40.8]
[1737795196101,0.48626,3290.9,3290.6,0.9899]
[1737795196598,0.48624,3291.1,3290.8,0.48626]
[1737795196793,2.46522,3291.2,3290.9,0.48625]
[1737795196993,0.3860509,3291.1,3290.9,0.48625]
[1737795198101,0.3860509,3291.1,3290.8,1.78357148]
[1737795198405,0.48626,3290.9,3290.8,1.78357148]
[1737795200701,0.48626,3290.9,3290.6,0.5036]
[1737795200904,0.4785,3290.8,3290.6,0.5036]
[1737795201297,0.4913,3290.7,3290.6,0.5036]
[1737795201696,0.4913,3290.7,3290.6,0.9899]
[1737795203501,0.4913,3290.7,3290.6,0.5036]
[1737795203700,0.97759,3290.7,3290.6,0.5036]
[1737795203895,0.9773,3290.7,3290.5,3.2078]
[1737795204099,0.4863,3290.6,3290.5,3.2078]
[1737795205605,4.4011423,3290.6,3290.5,3.2078]
[1737795206802,0.48634,3290.4,3290.0,0.97539]
[1737795207002,0.4938,3290.3,3290.0,0.97539]
[1737795207208,0.5031,3290.2,3290.0,0.97539]
[1737795207509,0.9884,3290.2,3290.0,0.48639]
[1737795207701,0.9884,3290.2,3289.9,4.99137148]
[1737795207901,0.9884,3290.2,3290.1,0.48637]
[1737795208104,0.4853,3290.2,3290.1,0.48637]
[1737795209007,0.97302,3290.5,3290.2,0.48636]
[1737795209203,0.4853,3290.4,3290.2,0.48636]
[1737795209708,0.4853,3290.4,3290.1,0.48637]
[1737795211908,0.4853,3290.4,3290.2,0.48636]
[1737795212411,0.4853,3290.4,3290.1,0.48637]
[1737795213810,0.4853,3290.4,3289.9,4.99137148]
[1737795214013,0.97163,3290.4,3290.0,0.48638]
[1737795214611,0.4976,3290.3,3290.0,0.48638]